bitfinex-derivatives/quotes_BTCF0:USTF0_20240820
["timestamp","ask_amount","ask_price","bid_price","bid_amount"]
[1724156492119,0.428711,60660.0,60659.0,0.02675783]
[1724156492419,0.428711,60660.0,60659.0,0.09266983]
[1724156494619,0.428711,60660.0,60659.0,0.09466983]
[1724156495321,0.426711,60660.0,60659.0,0.09466983]
[1724156495515,0.426711,60660.0,60659.0,0.09666983]
[1724156497119,0.4759476,60660.0,60659.0,0.09666983]
[1724156497324,0.426711,60660.0,60659.0,1e-08]
[1724156498521,0.426711,60660.0,60659.0,0.00100001]
[1724156498830,0.426711,60660.0,60659.0,0.004]
[1724156499132,0.3608,60660.0,60659.0,0.069912]
[1724156500124,0.06570413,60661.0,60660.0,0.065911]
[1724156500327,0.04923427,60662.0,60660.0,0.0484]
[1724156500626,0.04923427,60664.0,60663.0,0.065908]
[1724156501317,0.04923427,60664.0,60661.0,0.046]
[1724156501318,0.3608,60666.0,60665.0,0.065906]
[1724156502931,3.83666414,60667.0,60665.0,0.066906]
[1724156503122,3.83570413,60667.0,60665.0,0.066906]
[1724156503729,3.90160813,60667.0,60665.0,0.066906]
[1724156504031,3.90160813,60667.0,60666.0,0.065905]
[1724156504727,3.90260813,60667.0,60666.0,0.065905]
[1724156505523,3.90360813,60667.0,60666.0,0.065905]
[1724156506232,3.837904,60667.0,60666.0,0.065905]
[1724156511129,3.91999182,60667.0,60666.0,0.065905]
[1724156513135,3.86460769,60667.0,60666.0,0.065905]
[1724156515226,3.79870369,60667.0,60666.0,0.065905]
[1724156516241,3.86460769,60667.0,60666.0,0.065905]
[1724156519131,3.79870369,60667.0,60666.0,0.065905]
[1724156523334,3.79870349,60667.0,60666.0,0.065905]
[1724156524141,0.002,60667.0,60666.0,0.632415]
[1724156524442,0.06583377,60669.0,60668.0,0.065903]
[1724156524641,0.06583377,60670.0,60669.0,0.065902]
[1724156524841,0.06583377,60670.0,60669.0,0.29491019]
[1724156525630,0.06583377,60670.0,60669.0,0.79571019]
[1724156525944,0.06608104,60672.0,60671.0,0.131798]
[1724156526149,0.06608104,60672.0,60671.0,0.18098059]
[1724156526150,0.00024727,60672.0,60671.0,0.18098059]
[1724156526343,0.00024727,60672.0,60671.0,0.301798]
[1724156526643,0.00024727,60672.0,60671.0,0.63568059]
[1724156526834,0.06583377,60675.0,60671.0,1.385079]
[1724156527041,0.06583377,60676.0,60675.0,0.065895]
[1724156527242,0.06583377,60679.0,60676.0,0.065894]
[1724156527441,0.06583377,60681.0,60680.0,0.06589]
[1724156528440,0.06583377,60682.0,60681.0,0.065889]
[1724156529140,0.06583377,60682.0,60681.0,0.065539]
[1724156529337,0.08254652,60687.0,60682.0,0.065887]
[1724156529338,0.06583377,60683.0,60682.0,0.065887]
[1724156530346,0.06583377,60684.0,60683.0,0.065886]
[1724156532444,0.06583377,60685.0,60684.0,0.065885]
[1724156534237,0.06583377,60686.0,60685.0,0.065884]
[1724156536140,0.07983377,60686.0,60685.0,0.065884]
[1724156536844,0.14571677,60686.0,60685.0,0.065884]
[1724156537047,0.065889,60683.0,60682.0,0.065887]
[1724156537343,0.065889,60683.0,60680.0,0.02673401]
[1724156537344,0.065889,60681.0,60680.0,0.02673401]
[1724156537546,0.13152287,60681.0,60680.0,0.02573401]
[1724156537739,0.13152287,60681.0,60680.0,0.06589]
[1724156537939,3.90152287,60681.0,60680.0,0.06589]
[1724156538738,0.065894,60677.0,60676.0,0.065893]
[1724156538943,0.426694,60677.0,60676.0,0.065893]
[1724156539248,0.49233238,60677.0,60676.0,0.065893]
[1724156539439,4.30823238,60677.0,60676.0,0.065893]
[1724156539944,4.75343925,60677.0,60672.0,0.065898]
[1724156540140,0.3608,60675.0,60672.0,0.065898]
[1724156540342,0.44309925,60675.0,60672.0,0.065898]
[1724156541351,0.065897,60673.0,60672.0,0.065898]
[1724156541642,0.08229925,60673.0,60667.0,0.00024727]
[1724156541842,0.426696,60675.0,60667.0,0.00024727]
[1724156541843,0.3608,60668.0,60667.0,0.00024727]
[1724156542444,0.4065,60668.0,60667.0,0.00024727]
[1724156543249,0.472403,60668.0,60667.0,0.02484648]
[1724156543443,0.472403,60668.0,60667.0,0.00024727]
[1724156543744,0.426703,60668.0,60667.0,0.00024727]
[1724156544043,0.428703,60668.0,60667.0,0.00024727]
[1724156544438,0.428703,60668.0,60667.0,0.06615127]
[1724156546946,0.428703,60668.0,60667.0,0.09173515]
[1724156547550,0.431703,60668.0,60667.0,0.09173515]
[1724156552545,0.431703,60668.0,60667.0,0.06615127]
[1724156552840,0.431703,60668.0,60667.0,0.00024727]
[1724156554748,0.4558935,60668.0,60667.0,0.00024727]
[1724156555654,0.065911,60660.0,60654.0,0.065918]
[1724156555951,0.065917,60655.0,60654.0,0.065918]
[1724156556344,0.11513327,60655.0,60654.0,0.065918]
[1724156556955,0.065917,60655.0,60654.0,0.065918]
[1724156557254,0.11513327,60655.0,60654.0,0.065918]
[1724156557458,0.065917,60655.0,60654.0,0.065918]
[1724156557757,0.001,60655.0,60654.0,0.073918]
[1724156558054,0.001,60655.0,60654.0,0.074918]
[1724156558757,0.002,60655.0,60654.0,0.074918]
[1724156566362,0.05121627,60655.0,60654.0,0.074918]
[1724156567357,0.002,60655.0,60654.0,0.074918]
[1724156568566,0.06763042,60655.0,60654.0,0.074918]
[1724156569462,0.002,60655.0,60654.0,0.074918]
[1724156574668,0.002,60655.0,60654.0,0.188818]
[1724156577372,0.002,60655.0,60654.0,0.919336]
[1724156577672,0.00024727,60661.0,60660.0,0.131822]
[1724156577867,0.00024727,60661.0,60660.0,0.395722]
[1724156579570,0.00024727,60661.0,60660.0,0.395372]
[1724156579965,0.00124727,60661.0,60660.0,0.402372]
[1724156580670,0.00124727,60661.0,60660.0,0.288472]
[1724156580873,0.00124727,60661.0,60660.0,0.573272]
[1724156581079,0.00124727,60661.0,60660.0,0.507361]
[1724156581785,0.00124727,60661.0,60660.0,0.55662621]
[1724156583270,0.00124727,60661.0,60660.0,0.507361]
[1724156585276,0.00124727,60661.0,60660.0,0.53049141]
[1724156586172,0.00124727,60661.0,60660.0,0.24569141]
[1724156588782,0.00124727,60661.0,60660.0,0.31160241]
[1724156594177,0.00124727,60661.0,60660.0,0.59640241]
[1724156595583,0.00124727,60661.0,60660.0,0.64566234]
[1724156597689,0.00124727,60661.0,60660.0,0.59640241]
[1724156598591,0.44283803,60665.0,60660.0,0.46493041]
[1724156598792,0.08228822,60689.0,60677.0,0.131786]
[1724156599092,0.0822591,60696.0,60688.0,0.49228836]
[1724156599279,0.0822591,60699.0,60698.0,0.06587]
[1724156599485,0.0928,60705.0,60695.0,0.3608]
[1724156599486,0.1750591,60705.0,60700.0,0.065867]
[1724156599884,0.0928,60705.0,60696.0,0.35091927]
[1724156600089,0.0492433,60697.0,60696.0,0.35091927]
[1724156600488,0.0492433,60700.0,60697.0,0.065871]
[1724156601486,0.1188,60705.0,60696.0,0.28604727]
[1724156601487,0.0492433,60702.0,60698.0,0.06587]
[1724156602489,0.0492433,60704.0,60699.0,0.065869]
[1724156602894,0.0492433,60704.0,60700.0,0.065868]
[1724156603387,0.1420433,60705.0,60701.0,0.065866]
[1724156603889,0.012,60704.0,60703.0,0.065865]
[1724156604096,0.012,60704.0,60699.0,0.001]
[1724156604097,0.065866,60702.0,60700.0,0.066868]
[1724156604295,0.3608,60701.0,60700.0,0.066868]
[1724156604599,4.690907,60701.0,60696.0,0.06611927]
[1724156604793,0.11494111,60700.0,60697.0,0.065871]
[1724156605293,0.60918111,60700.0,60697.0,0.065871]
[1724156605792,0.560108,60700.0,60697.0,0.065871]
[1724156606600,0.04905688,60698.0,60697.0,0.065871]
[1724156606990,0.54329688,60698.0,60697.0,0.065871]
[1724156607290,3.81905688,60698.0,60697.0,0.065871]
[1724156607485,3.77,60698.0,60697.0,0.065871]
[1724156607794,3.77,60698.0,60697.0,0.066871]
[1724156608191,0.04905688,60699.0,60698.0,0.06587]
[1724156608797,0.04905688,60702.0,60697.0,0.002]
[1724156609488,0.04905688,60702.0,60701.0,0.065867]
[1724156609892,0.54329688,60702.0,60701.0,0.065867]
[1724156611196,0.94329688,60702.0,60701.0,0.065867]
[1724156611391,0.95729688,60702.0,60701.0,0.066867]
[1724156611792,0.92224,60702.0,60701.0,0.067867]
[1724156613802,0.92224,60702.0,60696.0,0.00024727]
[1724156613994,0.065871,60698.0,60697.0,0.06587]
[1724156614695,0.065871,60697.0,60696.0,0.00024727]
[1724156615101,0.065871,60697.0,60696.0,0.00124727]
[1724156615897,0.065871,60697.0,60696.0,0.00024727]
[1724156616204,0.065871,60697.0,60696.0,0.00124727]
[1724156616900,0.065871,60697.0,60696.0,0.00024727]
[1724156617103,0.078871,60697.0,60696.0,0.00124727]
[1724156618503,0.10107213,60697.0,60696.0,0.00124727]
[1724156618999,0.60635213,60697.0,60696.0,0.00224727]
[1724156619399,1.00635213,60697.0,60696.0,0.00224727]
[1724156621397,0.65540901,60697.0,60696.0,0.00224727]
[1724156621701,0.024,60697.0,60696.0,0.48466327]
[1724156622003,0.00024727,60709.0,60696.0,0.48466327]
[1724156622004,0.0493446,60709.0,60696.0,0.43704727]
[1724156622199,3.77,60707.0,60705.0,0.2848]
[1724156622395,3.77,60707.0,60706.0,0.065861]
[1724156623202,3.81909733,60707.0,60706.0,0.065861]
[1724156623393,3.77,60707.0,60706.0,0.065861]
[1724156623799,3.83586,60707.0,60706.0,0.065861]
[1724156624506,3.84486,60707.0,60706.0,0.066861]
[1724156624805,3.85886,60707.0,60706.0,0.067861]
[1724156626702,3.85886,60707.0,60706.0,0.067511]
[1724156627704,3.85886,60707.0,60706.0,0.002]
[1724156628409,4.37974895,60707.0,60706.0,0.002]
[1724156628794,4.37974895,60707.0,60697.0,0.3608]
[1724156628795,4.71388895,60707.0,60699.0,0.065868]
[1724156628996,0.065868,60700.0,60699.0,0.065868]
[1724156629509,0.14806883,60700.0,60699.0,0.065868]
[1724156629996,0.06587,60698.0,60697.0,0.3608]
[1724156630198,0.065871,60697.0,60696.0,0.00024727]
[1724156630395,0.14808024,60697.0,60696.0,0.00024727]
[1724156631504,0.15808024,60697.0,60696.0,0.00124727]
[1724156634409,0.075871,60697.0,60696.0,0.00124727]
[1724156634610,0.079871,60697.0,60696.0,0.00224727]
[1724156636102,0.10656305,60697.0,60696.0,0.00224727]
[1724156638303,0.10656305,60697.0,60696.0,0.06811927]
[1724156642408,0.10656305,60697.0,60696.0,0.00224727]
[1724156642915,3.87656305,60697.0,60696.0,0.00224727]
[1724156644310,3.87656304,60697.0,60696.0,0.06811927]
[1724156646205,3.849871,60697.0,60696.0,0.06811927]
[1724156646609,3.93205577,60697.0,60696.0,0.06811927]
[1724156647013,3.849871,60697.0,60696.0,0.06811927]
[1724156647516,3.93205577,60697.0,60696.0,0.06811927]
[1724156649216,3.93205577,60697.0,60696.0,0.00224727]
[1724156652824,3.849871,60697.0,60696.0,0.00224727]
[1724156653512,3.87656341,60697.0,60696.0,0.00224727]
[1724156653919,3.92246341,60697.0,60696.0,0.00224727]
[1724156654819,3.98833441,60697.0,60696.0,0.00224727]
[1724156655828,4.08644658,60697.0,60696.0,0.00224727]
[1724156656127,3.98833441,60697.0,60696.0,0.00224727]
[1724156656522,4.10223441,60697.0,60696.0,0.00224727]
[1724156656718,4.16810541,60697.0,60696.0,0.00224727]
[1724156656928,0.065881,60688.0,60687.0,0.0710878]
[1724156657122,0.14817682,60688.0,60687.0,0.02190288]
[1724156657319,0.14817682,60688.0,60684.0,0.477005]
[1724156657320,0.065883,60686.0,60685.0,0.04918492]
[1724156657520,0.065884,60685.0,60684.0,0.477005]
[1724156657722,0.065884,60685.0,60684.0,0.475285]
[1724156658630,0.065884,60685.0,60684.0,0.52447428]
[1724156658817,0.065884,60685.0,60684.0,0.475285]
[1724156659018,0.14818302,60685.0,60684.0,0.49699202]
[1724156659218,0.065884,60685.0,60684.0,0.49999202]
[1724156660827,0.065884,60685.0,60684.0,0.50099202]
[1724156661730,0.5192655,60685.0,60684.0,0.004]
[1724156662132,0.61802049,60685.0,60684.0,0.004]
[1724156662524,0.5192655,60685.0,60684.0,0.004]
[1724156662719,0.15846702,60685.0,60684.0,0.004]
[1724156662918,3.92846702,60685.0,60684.0,0.004]
[1724156663326,4.28926702,60685.0,60684.0,0.004]
[1724156664023,4.28926702,60685.0,60672.0,0.5868]
[1724156664024,0.065891,60679.0,60677.0,0.1139]
[1724156664223,0.131782,60679.0,60678.0,0.02303616]
[1724156664424,0.327913,60679.0,60678.0,0.02303616]
[1724156664631,4.097913,60679.0,60678.0,0.02303616]
[1724156664830,4.015682,60679.0,60678.0,0.02303616]
[1724156665537,3.901782,60679.0,60678.0,0.02303616]
[1724156666230,3.98395607,60679.0,60678.0,0.00043717]
[1724156666424,4.09785607,60679.0,60678.0,0.00043717]
[1724156666624,4.09785607,60679.0,60669.0,0.09778928]
[1724156666625,0.0659,60670.0,60669.0,0.114502]
[1724156666830,0.0659,60670.0,60669.0,0.250814]
[1724156668338,0.0679,60670.0,60669.0,0.275814]
[1724156668524,0.002,60670.0,60669.0,0.275814]
[1724156670335,0.05126754,60670.0,60669.0,0.275814]
[1724156672333,0.16516754,60670.0,60669.0,0.113314]
[1724156672529,0.23106754,60670.0,60669.0,0.025]
[1724156673128,0.065906,60665.0,60664.0,0.04918928]
[1724156673439,0.179806,60665.0,60664.0,0.04918928]
[1724156673630,0.179806,60665.0,60664.0,0.11509628]
[1724156673830,0.179806,60665.0,60664.0,0.065907]
[1724156674328,0.180806,60665.0,60664.0,0.079907]
[1724156674530,0.067906,60665.0,60664.0,0.093907]
[1724156683741,0.1170946,60665.0,60664.0,0.093907]
[1724156684431,0.18316007,60665.0,60664.0,0.028]
[1724156684637,0.13397147,60665.0,60664.0,0.028]
[1724156685237,0.19955628,60665.0,60664.0,0.028]
[1724156685434,0.13397147,60665.0,60664.0,0.028]
[1724156685638,0.19959144,60665.0,60664.0,0.028]
[1724156686145,0.19959144,60665.0,60664.0,0.021]
[1724156686536,0.13397147,60665.0,60664.0,0.021]
[1724156686936,0.13397147,60665.0,60651.0,0.06592]
[1724156686937,0.065914,60658.0,60651.0,0.06592]
[1724156687137,0.04923287,60657.0,60651.0,0.06592]
[1724156687337,0.06592,60652.0,60651.0,0.06592]
[1724156687737,0.06592,60652.0,60651.0,0.08720344]
[1724156688133,0.06592,60652.0,60651.0,0.08920344]
[1724156690047,0.06792,60652.0,60651.0,0.08720344]
[1724156691148,0.002,60652.0,60651.0,0.08720344]
[1724156693941,0.002,60652.0,60651.0,0.1361371]
[1724156694436,0.002,60652.0,60651.0,0.20110344]
[1724156695549,0.09837721,60669.0,60651.0,0.20110344]
[1724156695756,0.8773,60742.0,60651.0,0.20110344]
[1724156695757,0.17970229,60719.0,60652.0,0.4946]
[1724156696056,0.5438,60765.0,60652.0,0.4946]
[1724156696057,0.12912808,60747.0,60718.0,0.86022]
[1724156696349,0.11495212,60749.0,60746.0,0.4747]
[1724156696540,0.09851895,60764.0,60746.0,0.4747]
[1724156696541,0.09851895,60764.0,60746.0,0.5108]
[1724156696737,0.06579583,60748.0,60746.0,0.3608]
[1724156696941,3.94969583,60748.0,60747.0,0.3608]
[1724156697143,3.88395126,60748.0,60747.0,0.3608]
[1724156697340,3.94969583,60748.0,60746.0,0.3608]
[1724156697658,0.06574457,60747.0,60746.0,0.3608]
[1724156697947,0.11154457,60747.0,60746.0,0.3608]
[1724156698347,3.99544457,60747.0,60746.0,0.3608]
[1724156698654,3.99544457,60747.0,60741.0,0.00024688]
[1724156698655,3.88154457,60747.0,60741.0,0.00024688]
[1724156698844,0.06574457,60742.0,60741.0,0.00024688]
[1724156699652,3.83574457,60742.0,60741.0,0.00024688]
[1724156700442,5.126e-05,60748.0,60741.0,0.00024688]
[1724156700443,5.126e-05,60748.0,60741.0,1.02525957]
[1724156700644,5.126e-05,60748.0,60747.0,0.3608]
[1724156701054,0.06579583,60748.0,60747.0,0.3608]
[1724156701450,3.83579583,60748.0,60747.0,0.3608]
[1724156701754,3.84979583,60748.0,60747.0,0.3608]
[1724156702348,4.21059583,60748.0,60741.0,0.00124688]
[1724156702548,0.06574457,60742.0,60741.0,0.00024688]
[1724156703152,3.83574457,60742.0,60741.0,0.00024688]
[1724156703654,3.83574457,60742.0,60741.0,0.00124688]
[1724156704445,3.84774457,60742.0,60741.0,0.00224688]
[1724156704854,3.84774457,60742.0,60741.0,0.06807088]
[1724156705751,3.782,60742.0,60741.0,0.06807088]
[1724156705949,3.84774457,60742.0,60741.0,0.06807088]
[1724156712460,3.84974457,60742.0,60741.0,0.06807088]
[1724156714557,3.84774457,60742.0,60741.0,0.06807088]
[1724156717866,3.91356657,60742.0,60741.0,0.06807088]
[1724156722265,3.91391657,60742.0,60741.0,0.06807088]
[1724156728867,3.96281445,60742.0,60741.0,0.06807088]
[1724156733362,3.91391657,60742.0,60741.0,0.06807088]
[1724156733966,3.96325487,60742.0,60741.0,0.06807088]
[1724156735974,3.91391657,60742.0,60741.0,0.06807088]
[1724156736866,3.91391657,60742.0,60736.0,0.05575744]
[1724156736867,0.065827,60738.0,60736.0,0.05575744]
[1724156737087,0.065827,60738.0,60725.0,0.00013617]
[1724156737088,0.065829,60736.0,60731.0,0.06527916]
[1724156737273,0.065829,60736.0,60731.0,0.04896958]
[1724156737274,0.6453,60732.0,60731.0,0.04896958]
[1724156737471,0.065835,60730.0,60725.0,0.00013617]
[1724156737664,0.77698,60726.0,60725.0,0.00013617]
[1724156738083,1.75317073,60726.0,60725.0,0.00013617]
[1724156738278,5.52317073,60726.0,60725.0,0.00013617]
[1724156738579,5.44102,60726.0,60725.0,0.00013617]
[1724156739478,5.44102,60726.0,60725.0,0.00113617]
[1724156739479,5.45302,60726.0,60725.0,0.00113617]
[1724156739873,5.44102,60726.0,60725.0,0.00013617]
[1724156740183,5.45302,60726.0,60725.0,0.00113617]
[1724156740368,5.5185909,60726.0,60725.0,0.00113617]
[1724156740780,5.5295909,60726.0,60725.0,0.00213617]
[1724156741279,5.54675761,60726.0,60725.0,0.00213617]
[1724156741481,5.48118671,60726.0,60725.0,0.00213617]
[1724156741675,5.48218671,60726.0,60725.0,0.00213617]
[1724156744668,5.54802671,60726.0,60725.0,0.00213617]
[1724156744873,5.54807797,60726.0,60725.0,0.00213617]
[1724156745678,5.54807797,60726.0,60725.0,0.13381817]
[1724156745679,0.25461126,60726.0,60725.0,0.13381817]
[1724156745885,0.00024696,60732.0,60731.0,0.065834]
[1724156746184,3.77024696,60732.0,60731.0,0.065834]
[1724156747282,3.77324696,60732.0,60731.0,0.066834]
[1724156748476,3.78524696,60732.0,60731.0,0.067834]
[1724156748678,3.78224696,60732.0,60731.0,0.066834]
[1724156748878,3.77024696,60732.0,60731.0,0.066834]
[1724156749074,3.77024696,60732.0,60731.0,0.068834]
[1724156759286,0.04909249,60747.0,60731.0,1.528962]
[1724156759492,0.11490749,60749.0,60743.0,0.3608]
[1724156759695,0.06582,60744.0,60743.0,0.3608]
[1724156760081,0.06582,60744.0,60732.0,0.065833]
[1724156760082,0.6453,60744.0,60732.0,0.065833]
[1724156760283,0.6453,60744.0,60733.0,0.065832]
[1724156760284,0.3608,60739.0,60733.0,0.065832]
[1724156760490,0.40991098,60739.0,60733.0,0.065832]
[1724156760694,0.40991098,60739.0,60732.0,0.00024696]
[1724156760898,3.77,60733.0,60732.0,0.06607996]
[1724156761992,3.835832,60733.0,60732.0,0.06607996]
[1724156762295,3.88494298,60733.0,60732.0,0.00024696]
[1724156762596,3.88494298,60733.0,60732.0,0.00124696]
[1724156762597,3.835832,60733.0,60732.0,0.00124696]
[1724156763194,0.065839,60727.0,60725.0,0.00013617]
[1724156763395,0.06584,60726.0,60725.0,0.00013617]
[1724156763995,3.83584,60726.0,60725.0,0.00013617]
[1724156764195,3.83584,60726.0,60725.0,0.06597717]
[1724156764393,3.88496614,60726.0,60725.0,0.06597717]
[1724156764591,3.88496614,60726.0,60725.0,0.07197717]
[1724156766201,3.88596614,60726.0,60725.0,0.07997717]
[1724156767297,3.83684,60726.0,60725.0,0.07997717]
[1724156772812,3.771,60726.0,60725.0,0.07997717]
[1724156773907,3.771,60726.0,60725.0,0.07797717]
[1724156774407,3.82021785,60726.0,60725.0,0.12695178]
[1724156774912,3.82021785,60726.0,60725.0,0.12095178]
[1724156775106,3.82021785,60726.0,60725.0,0.12695178]
[1724156775305,3.771,60726.0,60725.0,0.12695178]
[1724156775506,3.771,60726.0,60725.0,0.07797717]
[1724156775707,3.77,60726.0,60725.0,0.07197717]
[1724156775906,3.771,60726.0,60725.0,0.07897717]
[1724156776108,3.771,60726.0,60725.0,0.07297717]
[1724156776304,3.771,60726.0,60725.0,0.53134404]
[1724156776508,3.771,60726.0,60725.0,1.02538404]
[1724156777002,9.6e-07,60733.0,60731.0,0.065834]
[1724156777202,0.0655709,60745.0,60738.0,0.065827]
[1724156777403,0.0655709,60749.0,60748.0,0.065816]
[1724156777802,0.0655709,60750.0,60749.0,0.065815]
[1724156778016,3.8355709,60750.0,60749.0,0.426615]
[1724156778405,3.77,60750.0,60749.0,0.426615]
[1724156778914,3.8195,60750.0,60749.0,0.426615]
[1724156779110,3.8225,60750.0,60749.0,0.427615]
[1724156779616,3.8355,60750.0,60749.0,0.428615]
[1724156780713,0.065817,60747.0,60745.0,0.065818]
[1724156780904,0.0455,60746.0,60745.0,0.065818]
[1724156781307,0.06582,60744.0,60743.0,0.00024696]
[1724156781510,3.83582,60744.0,60743.0,0.00024696]
[1724156781914,0.065821,60743.0,60737.0,0.3608]
[1724156782313,0.065821,60743.0,60740.0,0.065824]
[1724156783823,0.073821,60743.0,60740.0,0.066824]
[1724156784317,0.1393919,60743.0,60740.0,0.001]
[1724156784518,0.1313939,60741.0,60740.0,0.002]
[1724156784822,0.065823,60741.0,60740.0,0.002]
[1724156785211,3.835823,60741.0,60740.0,0.002]
[1724156785610,5.02472,60741.0,60740.0,0.001]
[1724156785816,5.02472,60741.0,60732.0,0.065832]
[1724156785817,0.06583,60735.0,60732.0,0.065832]
[1724156786111,0.0496,60734.0,60732.0,0.065832]
[1724156786319,0.0486,60733.0,60732.0,0.065832]
[1724156786515,0.065835,60730.0,60729.0,0.426636]
[1724156786825,0.065838,60728.0,60726.0,0.065839]
[1724156787022,3.83560749,60727.0,60726.0,0.065839]
[1724156787223,3.77,60727.0,60726.0,0.065839]
[1724156788828,3.77,60727.0,60726.0,0.071839]
[1724156789118,3.771,60727.0,60726.0,0.077839]
[1724156789913,3.836839,60727.0,60726.0,0.077839]
[1724156791525,3.836839,60727.0,60726.0,0.011]
[1724156794631,3.902678,60727.0,60726.0,0.011]
[1724156795827,3.96828123,60727.0,60726.0,0.011]
[1724156796919,0.001,60727.0,60712.0,0.04881823]
[1724156797122,0.001,60727.0,60726.0,0.42664]
[1724156797325,0.001,60727.0,60726.0,0.85237121]
[1724156797525,0.001,60727.0,60726.0,1.39516256]
[1724156797526,3.771,60727.0,60726.0,1.39516256]
[1724156797925,3.77113617,60727.0,60726.0,1.39516256]
[1724156798125,3.77113617,60727.0,60726.0,0.50116256]
[1724156798326,3.77013617,60727.0,60726.0,0.99516256]
[1724156798528,3.77113617,60727.0,60726.0,0.50115624]
[1724156799130,3.77113617,60727.0,60726.0,0.45836489]
[1724156799331,3.77113617,60727.0,60726.0,0.45836543]
[1724156799744,3.77113617,60727.0,60726.0,0.43264]
[1724156800344,3.77113617,60727.0,60726.0,0.45836628]
[1724156802340,3.77113617,60727.0,60726.0,0.43264]
[1724156803046,3.77113617,60727.0,60726.0,0.006]
[1724156803552,3.83697517,60727.0,60726.0,0.006]
[1724156803843,0.06697517,60727.0,60726.0,0.006]
[1724156804045,0.14773664,60747.0,60746.0,0.065818]
[1724156804235,0.3608,60760.0,60754.0,0.065809]
[1724156804236,0.08215073,60755.0,60754.0,0.065809]
[1724156804437,3.77,60755.0,60748.0,0.2845]
[1724156804634,0.06556208,60754.0,60748.0,0.2845]
[1724156805049,0.06556208,60754.0,60753.0,0.06581]
[1724156805344,0.00084,60755.0,60754.0,0.065809]
[1724156805547,0.06554766,60755.0,60754.0,0.065809]
[1724156805747,3.83554766,60755.0,60754.0,0.065809]
[1724156805936,3.77,60755.0,60754.0,0.065809]
[1724156806136,0.00024696,60757.0,60756.0,0.065807]
[1724156806348,0.00024696,60757.0,60756.0,0.81312394]
[1724156806349,9.6e-07,60757.0,60756.0,0.81312394]
[1724156806651,3.77000096,60757.0,60756.0,0.81311877]
[1724156806837,3.77000096,60757.0,60756.0,0.787407]
[1724156807244,3.77000096,60757.0,60756.0,0.3608]
[1724156807644,3.77000096,60757.0,60754.0,0.001]
[1724156807849,3.78000096,60757.0,60756.0,0.001]
[1724156808239,3.79400096,60757.0,60756.0,0.002]
[1724156808848,3.78000096,60757.0,60756.0,0.001]
[1724156809051,3.79400096,60757.0,60756.0,0.001]
[1724156810149,3.79400096,60757.0,60754.0,0.002]
[1724156810150,3.79200096,60757.0,60754.0,0.002]
[1724156810956,3.79200096,60757.0,60756.0,0.001]
[1724156811746,3.78400096,60757.0,60754.0,0.001]
[1724156811949,0.02200096,60757.0,60754.0,0.002]
[1724156812451,3.77,60755.0,60754.0,0.001]
[1724156813851,3.77,60755.0,60745.0,0.00024696]
[1724156813852,4.9483,60755.0,60745.0,0.00024696]
[1724156814049,0.3608,60746.0,60745.0,0.00024696]
[1724156814357,0.426618,60746.0,60745.0,0.00024696]
[1724156814654,3.835818,60746.0,60745.0,0.00024696]
[1724156814856,4.196618,60746.0,60745.0,0.00024696]
[1724156816449,0.065819,60745.0,60735.0,0.44265997]
[1724156816760,4.1338,60746.0,60735.0,0.426629]
[1724156816761,0.3608,60741.0,60735.0,0.426629]
[1724156817259,0.3608,60741.0,60735.0,0.3608]
[1724156817260,0.065829,60736.0,60735.0,0.3608]
[1724156817454,0.065833,60733.0,60731.0,0.065833]
[1724156817660,0.065829,60736.0,60735.0,0.008]
[1724156817858,3.835829,60736.0,60735.0,0.008]
[1724156818052,3.835829,60736.0,60735.0,0.015]
[1724156818864,3.836829,60736.0,60735.0,0.015]
[1724156819160,3.836829,60736.0,60735.0,0.007]
[1724156819457,3.836829,60736.0,60735.0,0.015]
[1724156819849,3.836829,60736.0,60735.0,0.007]
[1724156820161,3.837829,60736.0,60735.0,0.015]
[1724156825260,3.837829,60736.0,60735.0,0.08083]
[1724156826267,3.837829,60736.0,60735.0,0.015]
[1724156826755,3.903658,60736.0,60735.0,0.015]
[1724156826956,0.065835,60730.0,60729.0,0.000246]
[1724156828263,3.836835,60730.0,60729.0,0.013246]
[1724156828967,3.836835,60730.0,60729.0,0.015246]
[1724156829270,3.837835,60730.0,60729.0,0.015246]
[1724156829670,3.837835,60730.0,60729.0,0.081082]
[1724156830569,3.772,60730.0,60729.0,0.441882]
[1724156830767,0.3608,60738.0,60729.0,0.441882]
[1724156830768,0.00024696,60742.0,60730.0,0.49396]
[1724156831078,0.00024696,60742.0,60741.0,0.492446]
[1724156831260,0.00024696,60742.0,60741.0,0.986326]
[1724156831462,0.00024696,60742.0,60741.0,1.320503]
[1724156831770,0.00024696,60742.0,60741.0,0.920503]
[1724156832171,0.00124696,60742.0,60741.0,0.920503]
[1724156832472,0.00124696,60742.0,60741.0,0.426623]
[1724156832473,3.77224696,60742.0,60741.0,0.426623]
[1724156832970,3.77124696,60742.0,60741.0,1.320503]
[1724156833174,3.77124696,60742.0,60741.0,1.387326]
[1724156833865,0.00124696,60742.0,60741.0,1.46175623]
[1724156834071,9.6e-07,60742.0,60741.0,1.46175623]
[1724156834269,3.77000096,60742.0,60741.0,1.413043]
[1724156834473,3.77000096,60742.0,60741.0,1.46174277]
[1724156834968,3.77000096,60742.0,60741.0,1.39591977]
[1724156835168,3.77000096,60742.0,60741.0,1.413043]
[1724156835365,0.0471,60759.0,60756.0,0.065807]
[1724156836272,3.77,60757.0,60756.0,0.065807]
[1724156836973,3.77,60757.0,60756.0,0.066807]
[1724156837674,3.785,60757.0,60756.0,0.066807]
[1724156838971,3.771,60757.0,60756.0,0.066807]
[1724156839164,3.785,60757.0,60756.0,0.066807]
[1724156843069,0.015,60757.0,60756.0,1.34559193]
[1724156843269,9.6e-07,60764.0,60763.0,0.0658]
[1724156843483,9.6e-07,60764.0,60763.0,0.4266]
[1724156843775,3.77000096,60764.0,60763.0,0.4266]
[1724156843976,3.77000096,60764.0,60763.0,0.3608]
[1724156844162,0.065806,60757.0,60756.0,0.3618]
[1724156844567,3.77800096,60764.0,60763.0,0.001]
[1724156844770,3.84379996,60764.0,60763.0,0.001]
[1724156845377,3.84679996,60764.0,60763.0,0.001]